bitfinex-derivatives/quotes_BTCF0:USTF0_20251128
["timestamp","ask_amount","ask_price","bid_price","bid_amount"]
[1764315998943,0.50548,91102.0,91101.0,0.1162497]
[1764316005345,0.50548,91102.0,91101.0,0.4770497]
[1764316006347,0.50448,91102.0,91101.0,0.4770497]
[1764316006551,0.14448,91102.0,91101.0,0.4770497]
[1764316006738,0.50448,91102.0,91101.0,0.4770497]
[1764316006935,0.50348,91102.0,91101.0,0.4770497]
[1764316009551,0.50248,91102.0,91101.0,0.4770497]
[1764316009855,0.50448,91102.0,91101.0,0.4770497]
[1764316010353,0.50548,91102.0,91101.0,0.4770497]
[1764316012350,0.50448,91102.0,91101.0,0.4770497]
[1764316012950,0.50548,91102.0,91101.0,0.4770497]
[1764316014048,0.50248,91102.0,91101.0,0.4770497]
[1764316014350,0.50448,91102.0,91101.0,0.4770497]
[1764316014851,0.86448,91102.0,91101.0,0.41205]
[1764316015352,0.86448,91102.0,91101.0,0.46607]
[1764316015850,0.86548,91102.0,91101.0,0.46607]
[1764316016247,0.11248,91096.0,91095.0,0.05125]
[1764316016553,0.84248,91096.0,91095.0,0.05125]
[1764316016951,0.84248,91096.0,91095.0,0.10527]
[1764316017542,0.84348,91096.0,91095.0,0.10527]
[1764316021044,0.84348,91096.0,91095.0,0.20395559]
[1764316022062,0.84348,91096.0,91095.0,0.10527]
[1764316022461,0.1365405,91095.0,91094.0,0.01917281]
[1764316022663,0.9165405,91095.0,91094.0,0.04724]
[1764316022856,0.9165405,91095.0,91094.0,0.09923]
[1764316023762,0.9175405,91095.0,91094.0,0.09923]
[1764316023960,0.90656,91095.0,91094.0,0.09923]
[1764316028362,0.90656,91095.0,91094.0,0.04724]
[1764316029066,0.90656,91095.0,91094.0,0.09923]
[1764316029768,0.9175405,91095.0,91094.0,0.09923]
[1764316030667,0.90656,91095.0,91094.0,0.09923]
[1764316031562,0.85032,91095.0,91094.0,0.09923]
[1764316035465,0.52032,91095.0,91094.0,0.09923]
[1764316035660,0.44032,91095.0,91094.0,0.09923]
[1764316035867,0.10118466,91104.0,91103.0,0.1102095]
[1764316036164,0.55118466,91104.0,91103.0,0.1102095]
[1764316037062,0.55118466,91104.0,91103.0,0.09923]
[1764316037267,0.56196466,91104.0,91103.0,0.09923]
[1764316039863,0.11889,91100.0,91099.0,0.05731]
[1764316040062,0.95889,91100.0,91099.0,0.04633]
[1764316040261,0.09376,91098.0,91097.0,0.1450151]
[1764316040466,0.92376,91098.0,91097.0,0.1450151]
[1764316040665,1.28456,91098.0,91097.0,0.0986851]
[1764316040970,0.12028,91096.0,91095.0,0.0986851]
[1764316041169,0.93028,91096.0,91095.0,0.0986851]
[1764316042473,0.93128,91096.0,91095.0,0.1450151]
[1764316042663,0.93128,91096.0,91095.0,0.0986851]
[1764316042864,0.1047405,91095.0,91094.0,0.0986851]
[1764316043058,0.9147405,91095.0,91094.0,0.0986851]
[1764316043258,0.90376,91095.0,91094.0,0.2029257]
[1764316043467,0.54376,91095.0,91094.0,0.2029257]
[1764316043669,0.54376,91095.0,91094.0,0.1042406]
[1764316043866,0.54376,91095.0,91094.0,0.09326]
[1764316044073,0.57028,91095.0,91094.0,0.04633]
[1764316044669,0.09376,91093.0,91092.0,0.40713]
[1764316044872,0.92376,91093.0,91092.0,0.45406]
[1764316059796,0.92376,91093.0,91092.0,0.40713]
[1764316060296,0.92376,91093.0,91092.0,0.45393]
[1764316060496,0.92376,91093.0,91092.0,0.40713]
[1764316060996,0.92376,91093.0,91092.0,0.3608]
[1764316061388,0.92376,91093.0,91092.0,0.40622]
[1764316066486,0.92376,91093.0,91092.0,0.45302]
[1764316067693,1.7122607,91093.0,91092.0,0.09883165]
[1764316067893,0.11954,91092.0,91091.0,0.01965434]
[1764316068194,0.11954,91092.0,91085.0,0.00016466]
[1764316068195,0.1014616,91086.0,91085.0,0.09899631]
[1764316068396,0.9614616,91086.0,91085.0,0.00016466]
[1764316070601,0.9614616,91086.0,91085.0,0.00216466]
[1764316070995,1.3514616,91086.0,91085.0,0.00216466]
[1764316071598,0.11954,91072.0,91071.0,0.14425165]
[1764316071796,0.50954,91072.0,91071.0,0.24531906]
[1764316071993,0.50954,91072.0,91071.0,0.29211906]
[1764316072598,0.50954,91072.0,91071.0,0.19989906]
[1764316072798,0.1014641,91065.0,91064.0,0.01998688]
[1764316072990,0.09048,91058.0,91057.0,0.3608]
[1764316073198,0.94048,91058.0,91057.0,0.40622]
[1764316073590,0.1014658,91051.0,91050.0,0.09883165]
[1764316073796,0.46048,91051.0,91050.0,0.04542]
[1764316074089,0.46048,91051.0,91050.0,0.29211904]
[1764316076013,0.46348,91051.0,91050.0,0.26506402]
[1764316076304,0.46348,91051.0,91050.0,0.31186402]
[1764316078601,0.46348,91051.0,91050.0,0.21964402]
[1764316079297,0.46348,91051.0,91050.0,0.26506402]
[1764316079796,0.46348,91051.0,91050.0,0.31186402]
[1764316080900,0.46348,91051.0,91050.0,0.25967702]
[1764316081306,0.46348,91051.0,91050.0,0.31186402]
[1764316081710,0.46348,91051.0,91050.0,0.11196498]
[1764316085300,0.46348,91051.0,91050.0,0.06516498]
[1764316085599,0.46348,91051.0,91050.0,0.01974498]
[1764316085800,0.08751,91047.0,91046.0,0.45495099]
[1764316086000,0.46751,91047.0,91046.0,0.45495099]
[1764316087093,0.46951,91047.0,91046.0,0.45495099]
[1764316088403,0.46951,91047.0,91046.0,0.44396459]
[1764316090910,0.46951,91047.0,91046.0,0.46334001]
[1764316095413,0.382,91047.0,91046.0,0.46334001]
[1764316096009,0.42316,91047.0,91046.0,0.46334001]
[1764316097018,0.46951,91047.0,91046.0,0.46334001]
[1764316097822,0.42316,91047.0,91046.0,0.46334001]
[1764316098121,0.46951,91047.0,91046.0,0.46334001]
[1764316098317,0.3608,91058.0,91046.0,0.86334001]
[1764316098520,0.27,91058.0,91057.0,0.093875]
[1764316098820,0.31116,91058.0,91057.0,0.093875]
[1764316099021,0.35751,91058.0,91057.0,0.093875]
[1764316099217,0.27,91058.0,91057.0,0.093875]
[1764316099723,0.274,91058.0,91057.0,0.094875]
[1764316100213,0.004,91058.0,91057.0,0.094875]
[1764316100614,0.004,91058.0,91057.0,0.494875]
[1764316100818,0.00016466,91060.0,91059.0,0.0773]
[1764316101014,0.43786,91077.0,91076.0,0.0773]
[1764316101209,1.30786,91077.0,91076.0,0.0773]
[1764316101414,1.28786,91077.0,91076.0,0.0773]
[1764316102017,1.01786,91077.0,91076.0,0.0773]
[1764316102523,0.87586,91077.0,91076.0,0.0783]
[1764316103515,0.87686,91077.0,91076.0,0.0783]
[1764316108123,1.29686,91077.0,91076.0,0.0783]
[1764316109528,0.93686,91077.0,91076.0,0.0783]
[1764316109727,0.51606,91077.0,91076.0,0.11839635]
[1764316110324,0.87606,91077.0,91076.0,0.09582635]
[1764316118432,0.87606,91077.0,91076.0,0.01852635]
[1764316118433,1.23686,91077.0,91076.0,0.01852635]
[1764316118628,1.23686,91077.0,91057.0,0.13723649]
[1764316118629,0.07567,91058.0,91057.0,0.27129257]
[1764316118827,0.07567,91058.0,91056.0,0.3608]
[1764316118828,0.086655,91057.0,91056.0,0.3608]
[1764316119032,0.49567,91057.0,91056.0,0.41439887]
[1764316119836,0.49567,91057.0,91056.0,0.45198887]
[1764316120231,0.49667,91057.0,91056.0,0.45198887]
[1764316128040,0.85747,91057.0,91056.0,0.01824887]
[1764316128231,0.07567,91051.0,91050.0,0.03551475]
[1764316128445,0.51567,91051.0,91050.0,0.07310475]
[1764316129235,0.51567,91051.0,91050.0,0.29081984]
[1764316131742,0.51567,91051.0,91050.0,0.25322984]
[1764316132041,0.51567,91051.0,91050.0,0.15985984]
[1764316132240,0.51567,91051.0,91046.0,0.00027459]
[1764316132241,0.0446863,91047.0,91046.0,0.00027459]
[1764316132443,0.0446863,91047.0,91046.0,0.07321459]
[1764316132444,0.7954863,91047.0,91046.0,0.07321459]
[1764316133244,0.7954863,91047.0,91046.0,0.07421459]
[1764316134039,0.7954863,91047.0,91046.0,0.091923]
[1764316135548,0.7845,91047.0,91046.0,0.091923]
[1764316137547,0.3608,91047.0,91046.0,0.091923]
[1764316137739,0.3945,91064.0,91063.0,0.07294]
[1764316138048,0.7845,91064.0,91063.0,0.07294]
[1764316139147,0.7875,91064.0,91063.0,0.07294]
[1764316139748,0.7885,91064.0,91063.0,0.07294]
[1764316140135,0.0337,91053.0,91035.0,0.10833417]
[1764316140345,0.0337,91047.0,91046.0,0.090923]
[1764316140541,0.0446843,91063.0,91062.0,0.03759]
[1764316140740,0.4646843,91063.0,91062.0,0.07294]
[1764316141347,0.4646843,91063.0,91062.0,0.03535]
[1764316142143,0.4646843,91063.0,91055.0,0.09562]
[1764316142144,0.03215,91056.0,91055.0,0.09562]
[1764316142342,0.0306,91047.0,91046.0,0.052633]
[1764316142549,0.4706,91047.0,91046.0,0.052633]
[1764316142943,0.4706,91047.0,91046.0,0.017983]
[1764316143948,0.4706,91047.0,91046.0,0.018983]
[1764316144750,0.4706,91047.0,91046.0,0.053633]
[1764316146052,0.4706,91047.0,91046.0,0.092173]
[1764316155157,0.4815863,91047.0,91046.0,0.092173]
[1764316156752,0.4815863,91047.0,91046.0,0.018983]
[1764316160154,0.4815863,91047.0,91046.0,0.054253]
[1764316160355,0.4815863,91047.0,91046.0,0.087423]
[1764316161652,0.4706,91047.0,91046.0,0.087423]
[1764316161853,0.3608,91048.0,91047.0,0.0794263]
[1764316162157,0.79124,91048.0,91047.0,0.0794263]
[1764316162359,0.44088,91048.0,91047.0,0.0794263]
[1764316162856,0.44088,91048.0,91047.0,0.17792442]
[1764316163054,0.44088,91048.0,91047.0,0.17892442]
[1764316164761,0.44088,91048.0,91047.0,0.16793812]
[1764316168053,0.44088,91048.0,91047.0,0.09949812]
[1764316168259,0.44088,91048.0,91047.0,0.001]
[1764316168561,0.44088,91048.0,91047.0,0.16793812]
[1764316169255,0.44088,91048.0,91047.0,0.06944]
[1764316169458,0.44088,91048.0,91047.0,0.16793812]
[1764316170466,0.44088,91048.0,91047.0,0.09949812]
[1764316170777,0.44088,91048.0,91047.0,0.001]
[1764316172158,1.18168,91048.0,91047.0,0.001]
[1764316173558,0.0109878,91034.0,91033.0,0.09849812]
[1764316173759,0.0109888,91026.0,91024.0,0.09849812]
[1764316173959,0.0109888,91026.0,91020.0,0.15705649]
[1764316173960,0.0109892,91023.0,91022.0,0.09849812]
[1764316174154,0.4409892,91023.0,91022.0,0.13061812]
[1764316174457,0.44106652,91023.0,91020.0,0.01982]
[1764316174851,0.44106652,91023.0,91020.0,0.05194]
[1764316175056,0.44106652,91023.0,91022.0,0.005]
[1764316175258,0.44106652,91023.0,91022.0,0.03712]
[1764316175462,0.44106652,91023.0,91022.0,0.03812]
[1764316175661,0.44106652,91023.0,91022.0,0.03312]
[1764316175856,0.43007732,91023.0,91022.0,0.03312]
[1764316176260,0.43007732,91023.0,91022.0,0.03812]
[1764316176662,0.43007732,91023.0,91022.0,0.006]
[1764316177663,0.43007732,91023.0,91022.0,0.03812]
[1764316178968,0.43007732,91023.0,91022.0,0.006]
[1764316179958,0.43007732,91023.0,91022.0,0.03812]
[1764316180162,0.43007732,91023.0,91022.0,0.006]
[1764316180967,0.43007732,91023.0,91022.0,0.0727]
[1764316184873,0.82007732,91023.0,91022.0,0.0727]
[1764316188279,0.47007732,91023.0,91022.0,0.0727]
[1764316188683,0.43007732,91023.0,91022.0,0.0727]
[1764316192182,0.79007732,91023.0,91022.0,0.0727]
[1764316194178,0.0109893,91022.0,91020.0,3.23e-06]
[1764316194372,0.3608,91021.0,91006.0,0.06697471]
[1764316194680,0.0109911,91007.0,91006.0,0.00027471]
[1764316194877,0.7709911,91007.0,91006.0,0.00027471]
[1764316195482,0.7709911,91007.0,91006.0,0.00527471]
[1764316196383,0.7709911,91007.0,91006.0,0.00627471]
[1764316196774,0.7709911,91007.0,91006.0,0.00127471]
[1764316196976,0.7709911,91007.0,91006.0,0.00527471]
[1764316198185,1.1709911,91007.0,91006.0,0.00527471]
[1764316198884,1.1709911,91007.0,91006.0,0.02386296]
[1764316201277,0.8609911,91007.0,91006.0,0.02386296]
[1764316201886,0.8609911,91007.0,91006.0,0.08874296]
[1764316202990,0.8609911,91007.0,91006.0,0.02386296]
[1764316202991,1.1509911,91007.0,91006.0,0.02386296]
[1764316207585,1.51186842,91007.0,91006.0,0.02386296]
[1764316208786,1.51286842,91007.0,91006.0,0.02286296]
[1764316209286,1.51286842,91007.0,91006.0,0.01886296]
[1764316209486,1.52086842,91007.0,91006.0,0.01986296]
[1764316219798,1.52086842,91007.0,91006.0,0.04944296]
[1764316220286,1.52086842,91007.0,91006.0,0.01986296]
[1764316224586,1.52086842,91007.0,91006.0,0.04944296]
[1764316225200,1.52086842,91007.0,91006.0,0.01986296]
[1764316225699,1.52086842,91007.0,91006.0,0.04944296]
[1764316226002,1.52086842,91007.0,91006.0,0.08067296]
[1764316227293,1.49086842,91007.0,91006.0,0.08067296]
[1764316227995,1.49086842,91007.0,91006.0,0.01986296]
[1764316228701,1.49086842,91007.0,91006.0,0.04944296]
[1764316229500,1.49086842,91007.0,91006.0,0.08067296]
[1764316230600,1.21086842,91007.0,91006.0,0.08067296]
[1764316231299,1.53086842,91007.0,91006.0,0.01986296]
[1764316231708,1.53086842,91007.0,91006.0,0.04944296]
[1764316232199,1.53086842,91007.0,91006.0,0.02326296]
[1764316232606,1.53086842,91007.0,91006.0,0.05271296]
[1764316232904,1.53086842,91007.0,91006.0,0.02326296]
[1764316234296,1.53086842,91007.0,91006.0,0.0044]
[1764316234502,0.0109918,91001.0,91000.0,0.075]
[1764316234807,1.2409918,91001.0,91000.0,0.075]
[1764316235206,1.2409918,91001.0,91000.0,0.09331306]
[1764316235712,1.2469918,91001.0,91000.0,0.09431306]
[1764316238008,0.0109936,90986.0,90985.0,0.01833]
[1764316238200,1.97267092,90986.0,90985.0,0.01833]
[1764316239204,1.97467092,90986.0,90985.0,0.0369346]
[1764316239604,1.97467092,90986.0,90985.0,0.0959846]
[1764316239605,1.95467092,90986.0,90985.0,0.0959846]
[1764316242121,1.95467092,90986.0,90985.0,0.0186046]
[1764316242331,1.95467092,90986.0,90984.0,0.01833]
[1764316244928,1.95267092,90986.0,90984.0,0.01833]
[1764316245231,1.95567092,90986.0,90984.0,0.01833]
[1764316245634,1.95567092,90986.0,90985.0,0.05905]
[1764316247723,1.95267092,90986.0,90985.0,0.05905]
[1764316247919,1.95567092,90986.0,90985.0,0.001]
[1764316252133,1.95567092,90986.0,90985.0,0.03045]
[1764316252333,1.95567092,90986.0,90985.0,0.06005]
[1764316265545,1.15567092,90986.0,90985.0,0.06005]
[1764316265735,1.36567092,90986.0,90985.0,0.06005]
[1764316266045,1.58567092,90986.0,90985.0,0.06005]
[1764316266243,1.55467732,90986.0,90985.0,0.06005]
[1764316266839,1.19387732,90986.0,90985.0,0.06005]
[1764316268950,0.78721732,90986.0,90985.0,0.06005]
[1764316269248,0.78721732,90986.0,90985.0,0.55882482]
[1764316269249,0.32128,90986.0,90985.0,0.55882482]
[1764316269446,0.00016484,90995.0,90994.0,0.0669027]
[1764316269640,0.03038,91020.0,91019.0,0.0109896]
[1764316269945,0.74,91020.0,91019.0,0.4276996]
[1764316270144,0.07672,91038.0,91037.0,0.05591]
[1764316270344,0.89672,91038.0,91037.0,0.05591]
[1764316270849,0.82,91038.0,91037.0,0.05591]
[1764316271050,0.87994,91038.0,91037.0,0.05591]
[1764316271642,0.88294,91038.0,91037.0,0.05691]
[1764316272248,0.0709279,91033.0,91032.0,0.3608]
[1764316272444,0.0709284,91029.0,91028.0,0.00016484]
[1764316272744,1.2309284,91029.0,91028.0,0.00016484]
[1764316273737,0.758,91029.0,91028.0,0.14425749]
[1764316273938,0.00445125,91029.0,91028.0,0.90505749]
[1764316274144,0.37445125,91029.0,91028.0,1.10499885]
[1764316274343,0.378,91029.0,91028.0,1.10499885]
[1764316275040,0.37,91029.0,91028.0,1.10499885]
[1764316275240,0.37,91029.0,91028.0,0.70499885]
[1764316275848,0.00016484,91047.0,91045.0,0.12442]
[1764316276155,0.75027459,91046.0,91045.0,0.1354065]
[1764316276654,0.87137459,91046.0,91045.0,0.1354065]
[1764316277052,0.87437459,91046.0,91045.0,0.1354065]
[1764316277454,0.87437459,91046.0,91045.0,0.12442]
[1764316278248,0.44427459,91046.0,91045.0,0.12442]
[1764316279159,0.37427459,91046.0,91045.0,0.12442]
[1764316279548,0.37527459,91046.0,91045.0,0.12442]
[1764316280045,0.37327459,91046.0,91045.0,0.12442]
[1764316280650,0.37227459,91046.0,91045.0,0.12442]
[1764316281150,0.37027459,91046.0,91045.0,0.12442]
[1764316281357,0.37227459,91046.0,91045.0,0.12442]
[1764316282761,0.37127459,91046.0,91045.0,0.12442]
[1764316282960,0.37127459,91046.0,91045.0,0.14345454]
[1764316284061,0.37227459,91046.0,91045.0,0.14345454]
[1764316285149,0.49337459,91046.0,91045.0,0.14345454]
[1764316285554,0.49137459,91046.0,91045.0,0.14345454]
[1764316285755,0.49337459,91046.0,91045.0,0.14345454]
[1764316286054,0.85337459,91046.0,91045.0,0.14345454]
[1764316286256,0.85337459,91046.0,91045.0,0.01903454]
[1764316286562,0.85337459,91046.0,91044.0,0.3608]
[1764316286563,0.1211,91045.0,91044.0,0.3608]
[1764316286763,0.8711,91045.0,91044.0,0.42255]
[1764316287155,0.8711,91045.0,91044.0,0.48522]
[1764316288055,0.8721,91045.0,91044.0,0.50362739]
[1764316288859,0.8751,91045.0,91044.0,0.50362739]
[1764316289062,0.8751,91045.0,91044.0,0.37920739]
[1764316289256,0.8751,91045.0,91044.0,0.01840739]
[1764316289457,0.1211,91031.0,91030.0,0.4335382]
[1764316289662,0.8111,91031.0,91030.0,0.4335382]
[1764316289961,0.8111,91031.0,91030.0,0.4962082]
[1764316290158,0.8220882,91031.0,91030.0,0.3608]
[1764316291066,0.8220882,91031.0,91030.0,0.42255]
[1764316291867,0.8240882,91031.0,91030.0,0.42255]
[1764316292169,0.8240882,91031.0,91030.0,0.3608]
[1764316293366,0.8240882,91031.0,91030.0,0.37953963]
[1764316294970,0.8270882,91031.0,91030.0,0.37953963]
[1764316295659,0.8290882,91031.0,91030.0,0.38053963]
[1764316295962,0.11695,91029.0,91028.0,0.00016484]
[1764316296162,1.32695,91029.0,91028.0,0.00016484]
[1764316296364,0.11695,91018.0,91017.0,0.0676498]
[1764316296562,0.96695,91018.0,91017.0,0.1296098]
[1764316296966,0.1625102,91014.0,91013.0,0.3608]
[1764316297267,0.9225102,91014.0,91013.0,0.37989569]
[1764316298463,1.3325102,91014.0,91013.0,0.01909569]
[1764316298659,1.3325102,91014.0,91005.0,0.3608]
[1764316298660,0.1279412,91006.0,91005.0,0.3608]
[1764316298858,0.9479412,91006.0,91005.0,0.3608]
[1764316299667,0.9489412,91006.0,91005.0,0.3608]
[1764316299865,0.0109926,90995.0,90992.0,0.05666]
[1764316300170,0.11695,90989.0,90988.0,0.4284534]
[1764316300369,0.48695,90989.0,90988.0,0.7384534]
[1764316300559,0.48695,90989.0,90988.0,0.8004134]
[1764316304175,0.48795,90989.0,90988.0,0.8004134]
[1764316306880,0.48795,90989.0,90988.0,1.00035473]
[1764316308369,0.85795,90989.0,90988.0,0.67936133]
[1764316313673,0.60795,90989.0,90988.0,0.67936133]
[1764316315682,0.87795,90989.0,90988.0,0.61740133]
[1764316316082,0.87795,90989.0,90988.0,0.67936133]
[1764316319289,0.87795,90989.0,90988.0,0.47942]
[1764316321380,0.431,90989.0,90988.0,0.47942]
[1764316321688,0.06269644,91003.0,91002.0,0.10867]
[1764316321885,0.78269644,91003.0,91002.0,0.46947]
[1764316322075,0.83609644,91003.0,91002.0,0.46947]
[1764316323179,0.84009644,91003.0,91002.0,0.46947]
[1764316323381,0.84109644,91003.0,91002.0,0.46947]
[1764316325689,0.51109644,91003.0,91002.0,0.46947]
[1764316326392,0.71109644,91003.0,91002.0,0.46947]
[1764316330991,0.71109644,91003.0,91002.0,0.4886365]
[1764316331593,0.70010484,91003.0,91002.0,0.4886365]
[1764316332685,0.70010484,91003.0,91002.0,0.3799665]
[1764316333086,0.70010484,91003.0,91002.0,0.4295065]
[1764316333285,0.70010484,91003.0,91002.0,0.3799665]
[1764316334190,0.70010484,91003.0,91002.0,0.4295065]
[1764316335494,0.70010484,91003.0,91002.0,0.4795665]
[1764316337093,0.37516484,91003.0,91002.0,0.5078465]
[1764316337393,0.42376484,91003.0,91002.0,0.5078465]
[1764316337791,0.47254484,91003.0,91002.0,0.5078465]
[1764316338489,0.47154484,91003.0,91002.0,0.5078465]
[1764316338695,0.46854484,91003.0,91002.0,0.5078465]
[1764316339000,0.41976484,91003.0,91002.0,0.5078465]
[1764316339198,0.41876484,91003.0,91002.0,0.5078465]
[1764316339398,0.37116484,91003.0,91002.0,0.5078465]
[1764316339698,0.41976484,91003.0,91002.0,0.5078465]
[1764316340098,0.37116484,91003.0,91002.0,0.5078465]
[1764316340493,0.37016484,91003.0,91002.0,0.5078465]
[1764316340693,0.37116484,91003.0,91002.0,0.5078465]
[1764316341496,0.37216484,91003.0,91002.0,0.5078465]
[1764316342198,0.37116484,91003.0,91002.0,0.5078465]
[1764316342593,0.46754484,91003.0,91002.0,0.5078465]
[1764316342795,0.46854484,91003.0,91002.0,0.4795665]
[1764316346299,0.46854484,91003.0,91002.0,0.4295065]
[1764316346507,0.82854484,91003.0,91002.0,0.4795665]
[1764316346905,0.82854484,91003.0,91002.0,0.3799665]
[1764316349006,0.82854484,91003.0,91002.0,0.4286965]
[1764316352504,0.82854484,91003.0,91002.0,0.4787565]
[1764316352699,0.77976484,91003.0,91002.0,0.4787565]
[1764316352900,0.41976484,91003.0,91002.0,0.4787565]
[1764316353210,0.46746484,91003.0,91002.0,0.4787565]
[1764316354913,0.41976484,91003.0,91002.0,0.4787565]
[1764316355211,0.37116484,91003.0,91002.0,0.4787565]
[1764316355413,0.41776484,91003.0,91002.0,0.4787565]
[1764316355707,0.41676484,91003.0,91002.0,0.4787565]
[1764316355903,0.41776484,91003.0,91002.0,0.4787565]
[1764316356304,0.46446484,91003.0,91002.0,0.4787565]
[1764316357413,0.46446484,91003.0,91002.0,0.5069965]
[1764316357414,0.37016484,91003.0,91002.0,0.5069965]
[1764316357812,0.37116484,91003.0,91002.0,0.5069965]
[1764316358012,0.00116484,91003.0,91002.0,0.5069965]
[1764316358315,0.00016484,91003.0,91002.0,0.5069965]
[1764316358515,0.1052899,91017.0,91016.0,0.09753]
[1764316358716,0.5452899,91017.0,91016.0,0.09753]
[1764316360110,0.5343,91017.0,91016.0,0.09753]
[1764316360702,0.4906,91017.0,91016.0,0.09753]
[1764316360915,0.4906,91017.0,91016.0,0.19638368]
[1764316361105,0.42209553,91017.0,91016.0,0.6741133]
[1764316361412,0.42409553,91017.0,91016.0,0.57525962]
[1764316361717,0.171,91017.0,91016.0,0.57525962]
[1764316362010,0.172,91017.0,91016.0,0.57525962]
[1764316362204,0.002,91017.0,91016.0,0.57525962]
[1764316363108,0.001,91017.0,91016.0,0.57525962]
[1764316363504,0.001,91017.0,91016.0,0.18525962]
[1764316363702,0.001,91017.0,91016.0,0.57525962]
[1764316364425,0.001,91017.0,91016.0,0.59409534]
[1764316364621,0.001,91017.0,91016.0,0.20409534]
[1764316367515,0.4753,91017.0,91016.0,0.11636572]
[1764316370723,0.4862899,91017.0,91016.0,0.01883572]
[1764316370917,0.0943,91015.0,91014.0,0.3608]
[1764316371116,0.4743,91015.0,91014.0,0.3608]
[1764316374225,0.4743,91015.0,91014.0,0.38020857]
[1764316377517,0.4783,91015.0,91014.0,0.01940857]
[1764316377721,0.136461,91008.0,91007.0,0.00016484]
[1764316377923,0.576461,91008.0,91007.0,0.00016484]
[1764316379227,0.576461,91008.0,91007.0,0.01939457]
[1764316379228,0.577461,91008.0,91007.0,0.01939457]
[1764316379439,0.577461,91008.0,91007.0,0.00016484]
[1764316380021,0.580461,91008.0,91007.0,0.00016484]
[1764316380220,0.0943,91000.0,90999.0,0.3608]
[1764316380420,0.1052941,90982.0,90979.0,0.3608]
[1764316380726,0.5052941,90982.0,90979.0,0.3608]
[1764316381623,0.08906,90967.0,90966.0,0.46690083]
[1764316381821,0.50906,90967.0,90966.0,0.45590483]
[1764316383420,0.50906,90967.0,90966.0,0.47502386]
[1764316383620,0.50906,90967.0,90966.0,0.47602386]
[1764316383821,0.51006,90967.0,90966.0,0.48202386]
[1764316385625,0.51006,90967.0,90966.0,0.38719386]
[1764316386130,0.51006,90967.0,90966.0,0.43316386]
[1764316386727,0.50906,90967.0,90966.0,0.42616386]
[1764316387333,0.50906,90967.0,90966.0,0.47502386]
[1764316387636,0.50906,90967.0,90966.0,0.38019386]
[1764316388934,0.50906,90967.0,90966.0,0.42616386]
[1764316389523,0.50906,90967.0,90966.0,0.47502386]
[1764316390626,0.50906,90967.0,90966.0,0.38019386]
[1764316391932,0.50906,90967.0,90966.0,0.42616386]
[1764316392433,0.50906,90967.0,90966.0,0.47502386]
[1764316394826,0.46186,90967.0,90966.0,0.47502386]
[1764316395630,0.42,90967.0,90966.0,0.47502386]
[1764316396933,0.0942747,90977.0,90976.0,0.08765]
[1764316397130,0.0942747,90977.0,90976.0,0.0986448]
[1764316397131,0.41,90977.0,90976.0,0.0986448]
[1764316397835,0.49328,90977.0,90976.0,0.08765]
[1764316399032,0.49428,90977.0,90976.0,0.08765]
[1764316399234,0.49628,90977.0,90976.0,0.08765]
[1764316399637,0.49628,90977.0,90976.0,0.04398]
[1764316400027,0.49628,90977.0,90976.0,0.08765]
[1764316401533,0.49628,90977.0,90976.0,0.04398]
[1764316402429,0.49628,90977.0,90976.0,0.06280828]
[1764316402626,0.49628,90977.0,90976.0,0.10647828]
[1764316407342,0.49628,90977.0,90976.0,0.01882828]
[1764316407645,0.0942759,90967.0,90966.0,0.44872483]
[1764316407941,0.5342759,90967.0,90966.0,0.44872483]
[1764316409640,0.52328,90967.0,90966.0,0.44872483]
[1764316411331,0.52328,90967.0,90966.0,0.40505483]
[1764316411538,0.52328,90967.0,90966.0,0.44898483]
[1764316411835,0.52328,90967.0,90966.0,0.46821531]
[1764316413346,0.52328,90967.0,90966.0,0.42428531]
[1764316413546,0.52328,90967.0,90966.0,0.38030531]
[1764316413743,0.52328,90967.0,90966.0,0.41839531]
[1764316414740,0.5342759,90967.0,90966.0,0.41839531]
[1764316417544,0.5342759,90967.0,90966.0,0.38030531]
[1764316417943,0.9342759,90967.0,90966.0,0.38030531]
[1764316418536,0.5342759,90967.0,90966.0,0.38030531]
[1764316421343,0.5342759,90967.0,90966.0,0.41839531]
[1764316421950,0.5342759,90967.0,90966.0,0.38030531]
[1764316424245,0.5342759,90967.0,90966.0,0.01950531]
[1764316424441,0.9042759,90967.0,90966.0,0.01950531]
[1764316424642,1.3342759,90967.0,90966.0,0.01950531]
[1764316425750,1.0942759,90967.0,90966.0,0.05759531]
[1764316425955,1.0942759,90967.0,90966.0,0.01950531]
[1764316427754,0.9642759,90967.0,90966.0,0.01950531]
[1764316428057,1.3842759,90967.0,90966.0,0.01950531]
[1764316428658,0.1166074,90955.0,90954.0,0.44282]
[1764316428854,0.1166074,90955.0,90935.0,0.16191649]
[1764316428855,0.0935282,90948.0,90947.0,0.44282]
[1764316429053,0.9535282,90948.0,90947.0,0.44282]
[1764316429248,0.9535282,90948.0,90947.0,0.39889]
[1764316429851,0.9535282,90948.0,90947.0,0.44282]
[1764316430651,0.9535282,90948.0,90947.0,0.46213794]
[1764316430858,0.9535282,90948.0,90947.0,0.46713794]
[1764316432656,0.94253,90948.0,90947.0,0.46713794]
[1764316434362,0.86253,90948.0,90947.0,0.46713794]
[1764316435259,0.44,90948.0,90947.0,0.46713794]
[1764316438461,0.47889,90948.0,90947.0,0.46713794]
[1764316439958,0.44,90948.0,90947.0,0.46713794]
[1764316440266,0.47889,90948.0,90947.0,0.46713794]
[1764316440470,0.44,90948.0,90947.0,0.46713794]
[1764316442567,0.47889,90948.0,90947.0,0.46713794]
[1764316442960,0.44,90948.0,90947.0,0.46713794]
[1764316445367,0.47544,90948.0,90947.0,0.46713794]
[1764316445762,0.51585,90948.0,90947.0,0.46713794]
[1764316447267,0.47544,90948.0,90947.0,0.56571461]
[1764316447466,0.44,90948.0,90947.0,0.56571461]
[1764316449471,0.47544,90948.0,90947.0,0.56571461]
[1764316450366,0.07585,90960.0,90959.0,0.0869469]
[1764316450564,0.50585,90960.0,90959.0,0.4477469]
[1764316450765,0.06544,90960.0,90959.0,0.4477469]
[1764316451063,0.07601484,90964.0,90963.0,0.0869464]
[1764316451262,0.48601484,90964.0,90963.0,0.0869464]
[1764316453058,0.48601484,90964.0,90963.0,0.0879464]
[1764316457875,0.48601484,90964.0,90963.0,0.0119964]
[1764316458267,0.48601484,90964.0,90963.0,0.0796264]
[1764316459375,0.48601484,90964.0,90963.0,0.09909049]